Cogmind - Beta 11.1 --- EXPLORER MODE // 2022.09.11 @ 13:00:42 Player: LiteSpeed Result: Destroyed by B-48 Gladiator with Mace Performance ------------- Evolutions (4) 2000 Regions Visited (9) 1800 Robots Destroyed (49) 245 Value Destroyed (1791) 1791 Prototype IDs (3) 60 Alien Tech Used (0) 0 Bonus (37) 37 TOTAL SCORE: 5933 Bonus ------- Follower Combat Kills 37 Cogmind --------- Core Integrity 0/850 Matter 300/300 Energy 100/100 System Corruption 3% Temperature Cool (0) Movement Walking (190) Ox1 Location -6/Extension Parts ------- > --- POWER (3) -------- (None) > --- PROPULSION (3) --- Carbon-fiber Leg > --- UTILITY (5) ------ Advanced Heat Sink Large Storage Unit > --- WEAPON (5) ------- (None) > --- INVENTORY (15) --- (None) Peak State ------------ > --- POWER ------------ Light Angular Momentum Engine Cold Fusion Reactor Cold Fusion Reactor > --- PROPULSION ------- Aluminum Leg Carbon-fiber Leg Improved VSS Leg > --- UTILITY ---------- Advanced Heat Sink Large Storage Unit Improved Terrain Scan Processor High-powered Tractor Beam High-powered Tractor Beam > --- WEAPON ----------- Heavy Laser Coil Gun Gauss Cannon Mace Mining Claw > --- INVENTORY -------- Deuterium Engine Deuterium Engine Light Nuclear Core Light Angular Momentum Engine Light Angular Momentum Engine Light Treads Light Treads Carbon-fiber Leg Carbon-fiber Leg Large Storage Unit Improved Melee Analysis Suite Light Armor Plating Dynamic Insulation System Particle Gun Pulse Rifle [Rating: 59] Favorites ----------- Power Deuterium Engine Engine Deuterium Engine Power Core Light Nuclear Core Reactor Cold Fusion Reactor Propulsion Light Treads Treads Light Treads Leg Aluminum Leg Utility Large Storage Unit Device High-powered Tractor Beam Storage Large Storage Unit Processor Improved Terrain Scan Processor Protection Medium Armor Plating Weapon Mace Energy Gun Medium Laser Energy Cannon Light EM Pulse Cannon Ballistic Gun Assault Rifle Ballistic Cannon Gauss Cannon Launcher Grenade Launcher Impact Weapon Mace Slashing Weapon Mining Claw Build | -11 -10 -9 -9 -9 -8 -8 -7 -6 -6 ------- Run | Scr Mat Mat Min Exi Min Mat Fac Fac Ext Slots Evolved 9 | . 1 2 . . . 2 2 2 . Power 2 | . . 1 . . . 1 . . . Propulsion 1 | . . . . . . 1 . . . Utility 3 | . 1 . . . . . 2 . . Weapon 3 | . . 1 . . . . . 2 . Parts Attached 86 | 7 1 8 . . . 26 8 . 36 Power 21 | 1 . 2 . . . 8 1 . 9 Engine 17 | 1 . 2 . . . 8 . . 6 Core 2 | . . . . . . . 1 . 1 Reactor 2 | . . . . . . . . . 2 Propulsion 25 | 2 . 2 . . . 9 2 . 10 Treads 12 | 2 . 2 . . . 6 . . 2 Leg 13 | . . . . . . 3 2 . 8 Wheel . | . . . . . . . . . . Hover . | . . . . . . . . . . Flight . | . . . . . . . . . . Utility 20 | 2 1 2 . . . 3 2 . 10 Device 7 | 1 . . . . . 1 . . 5 Storage 4 | 1 . 1 . . . . . . 2 Processor 3 | . . . . . . . 2 . 1 Hackware . | . . . . . . . . . . Protection 6 | . 1 1 . . . 2 . . 2 Artifact . | . . . . . . . . . . Weapon 20 | 2 . 2 . . . 6 3 . 7 Energy Gun 8 | 1 . . . . . 2 . . 5 Energy Cannon 2 | . . 1 . . . 1 . . . Ballistic Gun 4 | 1 . 1 . . . 1 . . 1 Ballistic Cannon 3 | . . . . . . 2 1 . . Launcher 1 | . . . . . . . 1 . . Special Weapon . | . . . . . . . . . . Impact Weapon 1 | . . . . . . . 1 . . Slashing Weapon 1 | . . . . . . . . . 1 Piercing Weapon . | . . . . . . . . . . Special Melee Weapon . | . . . . . . . . . . Unidentified Prototypes 1 | . . . . . . . . . 1 Parts Lost 40 | . . . . . . 7 3 . 30 Power 11 | . . . . . . 2 1 . 8 Propulsion 7 | . . . . . . 1 . . 6 Utility 11 | . . . . . . 1 2 . 8 Weapon 11 | . . . . . . 3 . . 8 Highest Loss Streak 21 | . . . . . . 6 2 . 21 To Critical Strikes . | . . . . . . . . . . Average Slot Usage (%) 89 | . 99 100 100 100 100 85 80 68 85 Engine 13 | . 12 20 20 20 20 21 20 12 5 Core 1 | . . . . . . . . 6 2 Reactor 3 | . . . . . . . . . 9 Treads 10 | . 25 20 20 20 20 11 7 . 2 Leg 6 | . . . . . . 12 1 12 12 Device 8 | . 12 10 10 10 10 2 1 . 10 Storage 7 | . 12 10 10 10 10 8 7 6 6 Processor 5 | . . . . . . . 13 12 8 Protection 5 | . 11 10 10 10 10 7 6 . 1 Energy Gun 6 | . 12 10 10 10 10 4 . . 5 Energy Cannon 4 | . . 8 10 10 10 7 2 . . Ballistic Gun 5 | . 12 11 10 10 10 4 6 . 1 Ballistic Cannon 3 | . . . . . . 3 7 6 4 Launcher 1 | . . . . . . . . 6 2 Impact Weapon 2 | . . . . . . . 4 6 5 Slashing Weapon 1 | . . . . . . . . . 4 Naked Turns . | . . . . . . . . . . Heaviest Build 77 | 18 21 42 42 42 42 77 67 55 76 Greatest Support 60 | 40 40 40 40 40 40 60 60 20 40 Greatest Overweight (x) 21 | . . 1 1 1 1 10 21 2 17 Average Overweight (x) 1 | . . . 1 1 1 1 8 2 1 Largest Inventory Capacity 15 | 10 10 15 15 15 15 15 15 15 15 Average Capacity 14 | 7 10 12 15 15 15 15 15 15 15 Most Carried 15 | 3 5 9 9 9 10 15 10 10 15 Average Carried 9 | 1 4 6 9 9 9 10 8 9 10 Final Capacity 15 | 10 10 15 15 15 15 15 15 15 15 Final Carried 10 | 3 5 9 9 9 9 10 9 10 . Class Distribution -------------------- 62% | Hacker-Mutant 10% | Hacker-Tank 9% | Hacker-Gunner 7% | Scavenger-Gunner 6% | Scavenger-Mutant Dominant Class ---------------- Hacker-Mutant | -10/Materials Hacker-Mutant | -9/Materials Hacker-Mutant | -9/Mines Hacker-Mutant | -9/Exiles Hacker-Mutant | -8/Mines Hacker-Mutant | -8/Materials Hacker-Mutant | -7/Factory Hacker-Mutant | -6/Factory Hacker-Mutant | -6/Extension Resources | -11 -10 -9 -9 -9 -8 -8 -7 -6 -6 ----------- Run | Scr Mat Mat Min Exi Min Mat Fac Fac Ext Matter Collected 1789 | 215 101 160 . . 5 296 337 . 675 Remotely 527 | . . . . . . . . . 527 Salvage Created 2010 | . 95 506 . . . 372 283 . 754 Parts 97 | . 7 36 . . . 21 12 . 21 Haulers Intercepted . | . . . . . . . . . . Recyclers Shooed . | . . . . . . . . . . Parts Field Recycled . | . . . . . . . . . . Retrieved Matter . | . . . . . . . . . . Parts Self-Destructed . | . . . . . . . . . . Prevented . | . . . . . . . . . . Kills | -11 -10 -9 -9 -9 -8 -8 -7 -6 -6 ------- Run | Scr Mat Mat Min Exi Min Mat Fac Fac Ext Combat Hostiles Destroyed 38 | . 3 10 . . . 8 7 . 10 Melee 1 | . . . . . . . . . 1 Guns 15 | . 3 5 . . . 3 . . 4 Cannons 18 | . . 5 . . . 5 5 . 3 AOE 3 | . . . . . . . 2 . 1 Classes Destroyed 11 | . 3 3 . . . 1 2 . 2 Worker 1 | . . 1 . . . . . . . Builder 1 | . . . . . . . . . 1 Recycler 2 | . . . . . . . . . 2 Operator 2 | . . 1 . . . . . . 1 Watcher 5 | . 1 2 . . . . . . 2 Swarmer 4 | . 2 2 . . . . . . . Grunt 20 | . 1 4 . . . 2 5 . 8 Brawler 1 | . . . . . . . 1 . . Duelist 2 | . . . . . . 2 . . . Sentry 10 | . . 4 . . . 4 . . 2 Programmer 1 | . . . . . . . 1 . . Best Kill Streak 3 | . 2 2 . . . 2 3 . 3 Combat Bots Only 3 | . 2 2 . . . 2 3 . 3 Max Kills in Single Turn 3 | . 1 1 . . . 1 3 . 2 Gunslinging . | . . . . . . . . . . Exploded 2 | . . . . . . . 2 . 1 Melee 1 | . . . . . . . . . 1 Uniques/NPCs Destroyed . | . . . . . . . . . . Combat | -11 -10 -9 -9 -9 -8 -8 -7 -6 -6 -------- Run | Scr Mat Mat Min Exi Min Mat Fac Fac Ext Damage Taken 4805 | . 107 411 . . 4 753 463 . 3067 Core 1532 | . 10 218 . . . 246 201 . 857 Absorbed by Shields . | . . . . . . . . . . Core Remaining (%) 73 | 100 96 . . . 45 55 71 . . Volleys Fired 125 | . 12 27 . . . 28 16 . 42 Largest 3 | . 2 3 . . . 3 3 . 3 Hottest 156 | . 70 126 . . . 156 124 . 147 Shots Fired 279 | . 24 70 . . . 62 45 . 78 Gun 160 | . 24 47 . . . 29 14 . 46 Cannon 114 | . . 23 . . . 33 30 . 28 Launcher 5 | . . . . . . . 1 . 4 Special . | . . . . . . . . . . Kinetic 127 | . 12 31 . . . 21 30 . 33 Thermal 105 | . 12 16 . . . 22 14 . 41 Explosive 5 | . . . . . . . 1 . 4 Electromagnetic 42 | . . 23 . . . 19 . . . Robot Hit Streak 59 | . 16 23 . . . 32 34 . 59 Robot Miss Streak 4 | . 1 1 . . . 4 1 . 1 Penetration Max . | . . . . . . . . . . Secondary Targets . | . . . . . . . . . . Shots Hit Robots 240 | . 20 54 . . . 46 39 . 81 Core Hits 105 | . 6 22 . . . 27 16 . 34 Critical Kills 1 | . . 1 . . . . . . . Critical Parts Destroyed . | . . . . . . . . . . Critical Strikes 15 | . 2 1 . . . 3 1 . 8 Burn 8 | . 2 . . . . 3 . . 3 Destroy 1 | . . 1 . . . . . . . Blast 6 | . . . . . . . 1 . 5 Melee Attacks 10 | . . . . . . . . . 10 Impact 2 | . . . . . . . . . 2 Slashing 8 | . . . . . . . . . 8 Piercing . | . . . . . . . . . . Sneak Attacks 5 | . . . . . . . . . 5 Combat Hostiles . | . . . . . . . . . . Follow-up Attacks 1 | . . . . . . . . . 1 Damage Inflicted 4777 | . 252 883 . . . 915 761 . 1966 Guns 1825 | . 252 423 . . . 271 97 . 782 Cannons 2232 | . . 394 . . . 591 559 . 688 Explosions 341 | . . 66 . . . 53 105 . 117 Melee 360 | . . . . . . . . . 360 Ramming 19 | . . . . . . . . . 19 Kinetic 1919 | . 116 237 . . . 333 435 . 798 Thermal 1556 | . 136 252 . . . 275 221 . 672 Explosive 222 | . . . . . . . 105 . 117 Electromagnetic 701 | . . 394 . . . 307 . . . Impact 43 | . . . . . . . . . 43 Slashing 317 | . . . . . . . . . 317 Piercing . | . . . . . . . . . . Highest Corruption 3 | . . . . . . . 3 . 3 Average Corruption 2 | . . . . . . . 3 . 2 Corruption Purged . | . . . . . . . . . . Corruption Blocked . | . . . . . . . . . . Effects 11 | . . . . . . . 11 . . Message Errors 3 | . . . . . . . 3 . . Matter Fused 2 | . . . . . . . 2 . . Heat Flow Errors 1 | . . . . . . . 1 . . Data Loss (minor) 3 | . . . . . . . 3 . . Data Loss (major) 1 | . . . . . . . 1 . . Weapon Failures 1 | . . . . . . . 1 . . Overload Shots . | . . . . . . . . . . Overflow Damage 81 | . . . . . . 14 22 . 45 Projectiles 36 | . . . . . . 14 22 . . Explosions . | . . . . . . . . . . Melee 45 | . . . . . . . . . 45 Knockbacks 23 | . . . . . . 9 7 . 7 Impact . | . . . . . . . . . . Kinetic 21 | . . . . . . 9 6 . 6 Secondary 2 | . . . . . . . 1 . 1 Self-Inflicted Damage 49 | . . 19 . . . . 8 . 22 Shots 4 | . . 1 . . . . 1 . 2 Rammed . | . . . . . . . . . . Targets Rammed 12 | . . . . . . . . . 12 Kicked 12 | . . . . . . . . . 12 Crushed . | . . . . . . . . . . Highest Temperature 1229 | . 126 574 . . . 1229 843 . 354 Average Temperature 277 | . 49 163 . . . 439 352 . 118 Received Heat Transfer 1674 | . 81 126 . . . 342 198 . 927 Effects 125 | . . 16 . . . 66 43 . . Shutdowns 38 | . . 4 . . . 24 10 . . Energy Bleed 8 | . . . . . . 7 1 . . Interference 14 | . . 3 . . . 6 5 . . Matter Decay 10 | . . . . . . 6 4 . . Short Circuit 8 | . . . . . . 3 5 . . Damage (minor) 9 | . . . . . . 6 3 . . Damage (major) 31 | . . 6 . . . 12 13 . . Damage (core) 7 | . . 3 . . . 2 2 . . Siege Activations . | . . . . . . . . . . Robots Corrupted . | . . . . . . . . . . Combat Hostiles . | . . . . . . . . . . Parts Fried 1 | . . 1 . . . . . . . Impact Corruptions . | . . . . . . . . . . Robots Melted 1 | . . . . . . . . . 1 Combat Hostiles 1 | . . . . . . . . . 1 Parts Melted 2 | . . 1 . . . . . . 1 Heat Transferred 4133 | . 555 605 . . . 827 444 . 1702 Parts Sabotaged . | . . . . . . . . . . Parts Stolen . | . . . . . . . . . . Parts Stripped . | . . . . . . . . . . Power Chain Reactions 2 | . . 1 . . . 1 . . . Missiles Intercepted . | . . . . . . . . . . Alert | -11 -10 -9 -9 -9 -8 -8 -7 -6 -6 ------- Run | Scr Mat Mat Min Exi Min Mat Fac Fac Ext Peak Influence 306 | . 138 306 29 . . 188 111 22 214 Initial 41 | . . 41 29 . . . 19 22 7 Average 45 | . 76 87 29 . . 73 47 22 28 Maximum Alert Level 1 | . . 1 . . . . . . 1 Low Security (%) 97 | 100 100 87 100 . 100 100 100 100 97 Level 1 2 | . . 12 . . . . . . 2 Level 2 . | . . . . . . . . . . Level 3 . | . . . . . . . . . . Level 4 . | . . . . . . . . . . Level 5 . | . . . . . . . . . . High Security . | . . . . . . . . . . Max Security . | . . . . . . . . . . Squads Dispatched 4 | . . 1 . . . . . . 3 Investigation . | . . . . . . . . . . Extermination . | . . . . . . . . . . Reinforcement 4 | . . 1 . . . . . . 3 Assault . | . . . . . . . . . . Garrison . | . . . . . . . . . . Intercept . | . . . . . . . . . . Searches Triggered . | . . . . . . . . . . Construction Impeded . | . . . . . . . . . . Haulers Reinforced . | . . . . . . . . . . Active Scanning Responses . | . . . . . . . . . . Cargo Convoy Interrupts . | . . . . . . . . . . Stealth | -11 -10 -9 -9 -9 -8 -8 -7 -6 -6 --------- Run | Scr Mat Mat Min Exi Min Mat Fac Fac Ext Distress Signals 4 | . 1 . . . . 2 . . 1 Communications Jammed . | . . . . . . . . . . Distress Signals . | . . . . . . . . . . Times Spotted 72 | . 8 17 . . 3 13 7 . 24 Peak Tracking Total 6 | . 6 3 . . . 3 3 . 4 Tactical Retreats 7 | . 1 1 . . . . . . 5 Traps | -11 -10 -9 -9 -9 -8 -8 -7 -6 -6 ------- Run | Scr Mat Mat Min Exi Min Mat Fac Fac Ext Traps Triggered . | . . . . . . . . . . Indirectly . | . . . . . . . . . . Trap Hack Attempts . | . . . . . . . . . . Triggered . | . . . . . . . . . . Disarmed . | . . . . . . . . . . Reprogrammed . | . . . . . . . . . . Reused . | . . . . . . . . . . Traps Extracted . | . . . . . . . . . . Installed . | . . . . . . . . . . Triggered . | . . . . . . . . . . Machines | -11 -10 -9 -9 -9 -8 -8 -7 -6 -6 ---------- Run | Scr Mat Mat Min Exi Min Mat Fac Fac Ext Machines Disabled . | . . . . . . . . . . Max in Single Turn . | . . . . . . . . . . Machines Sabotaged . | . . . . . . . . . . Garrisons Compromised . | . . . . . . . . . . Overloaded Fab Kills . | . . . . . . . . . . Hacking | -11 -10 -9 -9 -9 -8 -8 -7 -6 -6 --------- Run | Scr Mat Mat Min Exi Min Mat Fac Fac Ext Machines Accessed 12 | . 4 1 . 1 . 1 . . 5 Terminals 9 | . 3 1 . . . 1 . . 4 Fabricators . | . . . . . . . . . . Repair Stations . | . . . . . . . . . . Recycling Units 2 | . 1 . . . . . . . 1 Scanalyzers . | . . . . . . . . . . Garrison Access . | . . . . . . . . . . Total Hacks 22 | . 7 1 . 3 . 1 . . 10 Successful 18 | . 6 1 . 3 . 1 . . 7 Failed 4 | . 1 . . . . . . . 3 Catastrophic . | . . . . . . . . . . Database Lockouts . | . . . . . . . . . . Manual . | . . . . . . . . . . Terminals 15 | . 5 1 . . . 1 . . 8 Fabricators . | . . . . . . . . . . Repair Stations . | . . . . . . . . . . Recycling Units 4 | . 2 . . . . . . . 2 Scanalyzers . | . . . . . . . . . . Garrison Access . | . . . . . . . . . . Terminal Hacks 15 | . 4 1 . 3 . 1 . . 6 Record 3 | . . . . 3 . . . . . Prototype ID Bank 1 | . . . . . . . . . 1 Open Door 1 | . . . . . . . . . 1 Alert Level 2 | . . . . . . . . . 2 Maintenance Status 1 | . 1 . . . . . . . . Recall Investigation 1 | . . . . . . . . . 1 Hauler Manifests 1 | . 1 . . . . . . . . Zone Layout 5 | . 2 1 . . . 1 . . 1 Fabricator Hacks . | . . . . . . . . . . Repair Station Hacks . | . . . . . . . . . . Recycling Unit Hacks 3 | . 2 . . . . . . . 1 Recycle Component 1 | . . . . . . . . . 1 Report Inventory 1 | . 1 . . . . . . . . Retrieve Matter 1 | . 1 . . . . . . . . Scanalyzer . | . . . . . . . . . . Garrison Access Hacks . | . . . . . . . . . . Unauthorized Hacks . | . . . . . . . . . . Terminals . | . . . . . . . . . . Fabricators . | . . . . . . . . . . Repair Stations . | . . . . . . . . . . Recycling Units . | . . . . . . . . . . Scanalyzers . | . . . . . . . . . . Garrison Access . | . . . . . . . . . . Data Cores Recovered 1 | . . 1 . . . . . . . Used . | . . . . . . . . . . Hacking Detections 3 | . 2 1 . . . . . . . Full Trace Events . | . . . . . . . . . . Feedback Events . | . . . . . . . . . . Feedback Blocked . | . . . . . . . . . . Robot Schematics Acquired . | . . . . . . . . . . Robots Built . | . . . . . . . . . . Authchips . | . . . . . . . . . . Time . | . . . . . . . . . . Total Robot Build Rating . | . . . . . . . . . . Part Schematics Acquired . | . . . . . . . . . . Parts Built . | . . . . . . . . . . Authchips . | . . . . . . . . . . Time . | . . . . . . . . . . Total Part Build Rating . | . . . . . . . . . . Parts Repaired . | . . . . . . . . . . Time . | . . . . . . . . . . Parts Recycled 1 | . . . . . . . . . 1 Recycled Matter . | . . . . . . . . . . Retrieved Matter . | . . . . . . . . . . Retrieved Components . | . . . . . . . . . . Parts Scanalyzed . | . . . . . . . . . . Part Schematics Acquired . | . . . . . . . . . . Parts Damaged . | . . . . . . . . . . Bothacking | -11 -10 -9 -9 -9 -8 -8 -7 -6 -6 ------------ Run | Scr Mat Mat Min Exi Min Mat Fac Fac Ext Used RIF Installer . | . . . . . . . . . . Robots Hacked . | . . . . . . . . . . Non-combat . | . . . . . . . . . . Combat . | . . . . . . . . . . Robot Hacks Applied . | . . . . . . . . . . Relay Couplers Released . | . . . . . . . . . . Fabnet Peak Effective % . | . . . . . . . . . . Robots Rewired . | . . . . . . . . . . Allies Hacked . | . . . . . . . . . . Hacks Repelled . | . . . . . . . . . . Allies | -11 -10 -9 -9 -9 -8 -8 -7 -6 -6 -------- Run | Scr Mat Mat Min Exi Min Mat Fac Fac Ext Total Allies 1 | . . . . . . . . . 1 Largest Group 1 | . . . . . . . . . 1 Highest-Rated Group 31 | . . . . . . . . . 31 Highest-Rated Ally 31 | . . . . . . . . . 31 Total Orders . | . . . . . . . . . . Ally Attacks 15 | . . . . . . . . . 15 Total Damage 266 | . . . . . . . . . 266 Kills 1 | . . . . . . . . . 1 Allies Corrupted . | . . . . . . . . . . Allies Melted . | . . . . . . . . . . Intel | -11 -10 -9 -9 -9 -8 -8 -7 -6 -6 ------- Run | Scr Mat Mat Min Exi Min Mat Fac Fac Ext Robot Analysis Total . | . . . . . . . . . . Derelict Logs Recovered 1 | . . . 1 . . . . . . Drone Launches . | . . . . . . . . . . Drone Recoveries . | . . . . . . . . . . Exploration | -11 -10 -9 -9 -9 -8 -8 -7 -6 -6 ------------- Run | Scr Mat Mat Min Exi Min Mat Fac Fac Ext Turns Passed 6324 | 79 292 788 188 586 328 684 792 116 2471 Spaces Moved 2404 | 45 157 345 79 245 130 259 134 45 965 Core 67 | 6 . . . . . 5 46 . 10 Treads 1397 | 39 157 345 79 245 130 155 61 . 186 Legs 940 | . . . . . . 99 27 45 769 Wheels . | . . . . . . . . . . Hover . | . . . . . . . . . . Flight . | . . . . . . . . . . Fastest Speed 50 | 50 160 160 240 240 240 160 240 260 120 Average Speed 237 | 145 160 193 240 240 240 213 540 260 233 Slowest Speed 1100 | 160 160 240 240 240 240 550 1100 260 900 Overloaded Moves . | . . . . . . . . . . Propulsion Burnouts . | . . . . . . . . . . Robots Hopped . | . . . . . . . . . . Cave-ins Triggered . | . . . . . . . . . . Exploration Rate (%) 26 | 3 30 33 28 55 37 23 2 2 52 Regions Visited 9 Branch Regions 4 Pre-discovered Areas 1 | . . . . 1 . . . . . Known Exits Taken 9 | 1 1 1 1 1 1 1 1 1 . Unknown Exits Taken . | . . . . . . . . . . Scrap Searched . | . . . . . . . . . . Spaces Dug . | . . . . . . . . . . Terrain Destroyed 53 | . . 2 . . . 5 3 . 43 Melee . | . . . . . . . . . . Projectile 7 | . . . . . . . . . 7 AOE 46 | . . 2 . . . 5 3 . 36 Terrain Rammed . | . . . . . . . . . . Walls Destroyed . | . . . . . . . . . . Machines Disabled . | . . . . . . . . . . Actions | -11 -10 -9 -9 -9 -8 -8 -7 -6 -6 --------- Run | Scr Mat Mat Min Exi Min Mat Fac Fac Ext Total 2738 | 56 173 408 78 244 147 335 169 45 1083 Wait 57 | 1 2 21 . . 16 10 4 . 3 Move 2395 | 44 156 344 78 244 129 258 133 44 965 Hop . | . . . . . . . . . . Pick Up 30 | 4 2 6 . . 1 4 3 1 9 Fast Attach 25 | 6 1 . . . . 11 3 . 4 Attach 30 | 1 . 2 . . . 6 2 . 19 Detach . | . . . . . . . . . . Swap 31 | . . 6 . . . 9 3 . 13 Drop 25 | . . 2 . . 1 9 5 . 8 Fire 125 | . 12 27 . . . 28 16 . 42 Melee 8 | . . . . . . . . . 8 Ram . | . . . . . . . . . . Kick 12 | . . . . . . . . . 12 Crush . | . . . . . . . . . . Escape Stasis . | . . . . . . . . . . Rewire . | . . . . . . . . . . Trap . | . . . . . . . . . . Miscellaneous . | . . . . . . . . . . Route ------- -11/Scrapyard -10/Materials -9/Materials -9/Mines -9/Exiles (discovered 2 exits: *Min x2) -8/Mines -8/Materials -7/Factory -6/Factory -6/Extension History --------- Turn | Location | Event 16 | -11/Scrapyard | Identified exit to Materials 16 | -11/Scrapyard | Discovered exit to Materials (range 15) 80 | -11/Scrapyard | Entered Materials 80 | -10/Materials | Evolved 1 slot: Utility x1 304 | -10/Materials | Build established: Hacker-Mutant 329 | -10/Materials | Identified exit to Materials 329 | -10/Materials | Discovered exit to Materials (range 15) 372 | -10/Materials | Entered another Materials area 372 | -9/Materials | Evolved 2 slots: Power x1, Weapon x1 666 | -9/Materials | Build established: Hacker-Tank 706 | -9/Materials | Core integrity fell below 50% 1029 | -9/Materials | Build established: Hacker-Mutant 1134 | -9/Materials | Identified exit to Mines 1134 | -9/Materials | Discovered exit to Mines (range 9) 1160 | -9/Materials | Entered Mines 1314 | -9/Mines | Learned Materials stockpile data 1336 | -9/Mines | Deemed a non-threat by the Exiles lab entrance 1336 | -9/Mines | Identified exit to Exiles 1336 | -9/Mines | Discovered exit to Exiles (range 5) 1348 | -9/Mines | Entered Exiles 1387 | -9/Exiles | Identified exit to Mines 1387 | -9/Exiles | Discovered exit to Mines (range 15) 1490 | -9/Exiles | Met 8R-AWN 1543 | -9/Exiles | Met EX-HEX 1660 | -9/Exiles | Met EX-DEC 1730 | -9/Exiles | Learned location of Zion (-7) 1840 | -9/Exiles | Discovered exit to Mines (range 12) 1934 | -9/Exiles | Entered Mines 2233 | -8/Mines | Identified exit to Materials 2233 | -8/Mines | Discovered exit to Materials (range 12) 2262 | -8/Mines | Entered Materials 2262 | -8/Materials | Evolved 2 slots: Power x1, Propulsion x1 2710 | -8/Materials | Lost 6 parts (2p1n3w) 2908 | -8/Materials | Identified exit to Factory 2908 | -8/Materials | Discovered exit to Factory (range 4) 2946 | -8/Materials | Entered Factory 2946 | -7/Factory | Evolved 2 slots: Utility x2 3699 | -7/Factory | Identified exit to Factory 3699 | -7/Factory | Discovered exit to Factory (range 15) 3738 | -7/Factory | Entered another Factory area 3738 | -6/Factory | Evolved 2 slots: Weapon x2 3815 | -6/Factory | Identified exit to Extension 3815 | -6/Factory | Discovered exit to Extension (range 15) 3854 | -6/Factory | Entered Extension 4346 | -6/Extension | Rescued a captive Derelict 4621 | -6/Extension | Build established: Hacker-Gunner 5047 | -6/Extension | Spotted B-75 Beast 5399 | -6/Extension | Build established: Scavenger-Gunner 5651 | -6/Extension | Lost 4 parts (1p1n1u1w) 6044 | -6/Extension | Build established: Scavenger-Mutant 6185 | -6/Extension | Spotted B-75 Beast 6213 | -6/Extension | Core integrity fell below 50% 6235 | -6/Extension | Core integrity fell below 20% 6325 | -6/Extension | Destroyed by B-48 Gladiator with Mace Last Messages --------------- [Achievement: It's Just You] 06272_ Carbon-fiber Leg destroyed. 06273_ Acquired 5 matter. 06283_ Acquired Adv. Heat Sink. 06284_ Acquired 40 matter. 06289_ Imp. Terrain Scan Processor destroyed. 06289_ System corrupted by crushing effect (+1). 06295_ Imp. Melee Analysis Suite destroyed. 06295_ Pulse Rifle destroyed. 06295_ System corrupted by crushing effect (+2). 06295_ Knocked back. 06297_ Kicked B-48 Gladiator. 06303_ Knocked back. 06307_ Kicked B-48 Gladiator. 06309_ Knocked back. 06312_ Kicked B-48 Gladiator. 06320_ Kicked B-48 Gladiator out of the way. 06322_ Kicked B-48 Gladiator. 06322_ Knocked back. [Achievement: 5k Club] Map ----- +----------------------------------------------------+ | | | | | | | | | | | | | | | | | ?????????????????????????????????????????????????? | | ?????????????????????????????????????????????????? | | ?????????????????????????????????????????????????? | | ?????????????????????????????????????????????????? | | ?????????????????????????????????????????????????? | | ??##########?????????????????????????????????????? | | ??# #?????????????????????????????????????? | | ??# #?????????????????????????????????????? | | ??# #######???????????????????????????????? | | ??# # # #???????????????????????????????? | | ??# ##### #??????####?????????????????????? | | ??# # #??????# ??????????????????????? | | ??# %%% # #??????# ??????????????????????? | | #?# ### # #??????#% ??????????????????????? | | ### % #!#%#????????#%%??????????????????????? | | ###%#????????#%#??????????????????????? | | ###### #?# #????????#b#??????????????????????? | | #????# #?# #????????#@#??????????????????????? | | ?????# #?# #????????#%#??????????????????????? | | ?????#######?# #????????#%#??????????????????????? | | ?????????????# #????????#%#??????????????????????? | | ?????????????# #????????#%#??????????????????????? | | ?????????????#%#????????#%#??????????????????????? | | ?????????????#%#????????# #??????????????????????? | | ?????????????# #????????# #??????????????????????? | | ?????????????# #????????# #??????????????????????? | | ?????????????#%#????????# #??????????????????????? | | ?????????????#%#????????# #??????????????????????? | | ?????????????#%#???????#" #??????????????????????? | | ????????????##%###??### " ##?????????????????????? | | ????????????##%##%###"# " ##?????????????????????? | | ???????????### ###%##%"""%!##????????????????????? | | ???????????#""% % %! = #????????????????????? | | ???????????# %% % ##???????????????????? | | ???????????# ##???????????????????? | | ????##?????# ##???????????????????? | | ############ #????????????????????? | | ???????????????????? | | ?????????????????? | | ???????????????? | | % ?????????????? | | !% ????????????? | +----------------------------------------------------+ Best States ------------- Heat Dissipation 56 Energy Generation 42 Energy Capacity 625 Matter Stores 300 Matter Capacity 300 Sight Range 16 Terrain Scan Range 14 Terrain Scan Density 110 EM Shielding 2 Armor Coverage 375 Resistance: KI 55 Resistance: TH 35 Resistance: EX 35 Resistance: EM 35 Resistance: I 35 Resistance: S 35 Resistance: P 35 Evasion (%) 40 Targeting Accuracy 5 Melee Accuracy 6 Recoil Reduction 3 Offensive Hacking 20 Item Schematics ----------------- None Robot Schematics ------------------ None Fabricated ------------ Nothing Alien Tech Used ----------------- None Achievements -------------- 5k Club It's Just You Challenges ------------ None Game ------ Seed PlasmaTacticalBeamcaster Manual? 0 Play Time 00:58:21 Cumulative 15.8 hours Start 2022.09.05 @ 22:52:25 End 2022.09.11 @ 13:00:42 Sessions 3 Manual Loads 0 Difficulty Explorer Special Mode None Game No. 37 Rogue 27 Adventurer 0 Explorer 10 Win Type - Total 0 Types 0/0/0/0/0/0/0/0/0 Lore% 16 Gallery% 25 Achievement% 14 Wizard Run 0 Options --------- ASCII 0 Keyboard 0 Movement Mouse Keybinds 0 Fullscreen 1 Font 18/SmallcapsGlow Map View 76x50 Tactical HUD 1 Map Filters NONE Filters NONE Steam 1 RUN: e0563c39-5267-4ad3-82c7-92375ea5cdc6